bitfinex-derivatives/quotes_ETHF0:USTF0_20250103
["timestamp","ask_amount","ask_price","bid_price","bid_amount"]
[1735911279579,0.28681,3489.7,3489.6,0.28679]
[1735911280572,0.28678,3490.0,3489.9,0.28677]
[1735911280777,0.71691,3490.2,3489.5,3.2078]
[1735911280973,0.2868,3489.8,3489.7,0.28679]
[1735911283077,3.92469,3490.3,3489.4,2.96126944]
[1735911283381,3.2078,3490.3,3490.2,0.28676]
[1735911283571,3.49455,3490.3,3490.2,0.28676]
[1735911284579,0.28675,3490.3,3490.2,0.28676]
[1735911285583,40.8,3490.5,3489.8,0.71698]
[1735911285775,0.28677,3490.2,3490.1,0.28676]
[1735911286880,0.2868,3489.7,3489.6,0.28679]
[1735911287577,0.28683,3489.4,3489.3,0.28682]
[1735911287778,0.28687,3489.0,3488.9,0.28685]
[1735911288080,3.2078,3489.7,3488.7,3.2078]
[1735911288287,3.2078,3489.7,3489.1,2.24421944]
[1735911288288,40.8,3489.5,3489.1,2.24421944]
[1735911288480,41.08682,3489.5,3489.4,0.28682]
[1735911288973,0.28682,3489.5,3489.4,0.28682]
[1735911289172,0.28682,3489.6,3489.5,0.2868]
[1735911289590,40.8,3489.6,3489.3,1.0039]
[1735911289881,40.8,3489.6,3489.5,0.28681]
[1735911290283,3.92473,3490.1,3489.5,0.28681]
[1735911290284,0.28678,3490.0,3489.9,0.28677]
[1735911290477,0.2868,3489.8,3489.7,0.28679]
[1735911291678,0.28678,3489.9,3489.8,0.28678]
[1735911292384,0.28678,3490.0,3489.9,0.28677]
[1735911295988,0.28679,3489.9,3489.8,0.28678]
[1735911296883,44.0078,3490.1,3489.1,5.45201944]
[1735911297184,44.0078,3490.1,3489.3,0.28682]
[1735911297185,0.28683,3489.4,3489.3,0.28682]
[1735911299184,0.28682,3489.5,3489.4,0.28681]
[1735911299882,3.2078,3489.7,3489.1,3.2078]
[1735911300078,0.28683,3489.4,3489.3,0.28682]
[1735911303390,0.28684,3489.3,3489.2,0.28683]
[1735911305694,0.28689,3488.7,3488.6,0.28687]
[1735911305988,5.45201944,3489.3,3488.4,6.93110224]
[1735911305989,0.28689,3488.6,3488.4,6.93110224]
[1735911306187,42.25489,3488.6,3488.4,6.64420224]
[1735911306490,42.25489,3488.6,3488.5,2.52865522]
[1735911306491,47.25489,3488.6,3488.5,2.52865522]
[1735911306991,42.25489,3488.6,3488.5,2.52865522]
[1735911307385,41.968,3488.6,3488.2,0.28692]
[1735911307593,41.968,3488.6,3487.7,6.16940944]
[1735911307883,0.2869,3488.5,3488.4,0.2869]
[1735911310593,2.24963294,3488.7,3488.6,0.28689]
[1735911310798,3.36566276,3488.9,3488.8,0.28687]
[1735911311397,3.36566276,3488.9,3488.8,7.53108944]
[1735911311398,2.5141457,3488.9,3488.8,7.53108944]
[1735911311597,1.9013257,3488.9,3488.8,7.53108944]
[1735911311995,1.2726857,3488.9,3488.8,7.53108944]
[1735911312191,3.2078,3490.4,3488.8,7.24421944]
[1735911312192,1.2726857,3490.1,3488.8,7.24421944]
[1735911312397,1.2726857,3490.1,3490.0,2.53098944]
[1735911312898,1.5594457,3490.1,3490.0,2.53098944]
[1735911313099,1.5594457,3490.1,3490.0,0.28677]
[1735911313295,1.2726857,3490.1,3490.0,0.28677]
[1735911313698,1.5594457,3490.1,3490.0,0.28677]
[1735911313892,0.28676,3490.1,3490.0,0.28677]
[1735911314601,0.28676,3490.1,3489.7,2.24421944]
[1735911314602,3.2078,3490.4,3489.7,2.24421944]
[1735911314804,3.2078,3490.4,3489.4,5.45201944]
[1735911314990,0.2868,3489.7,3489.6,0.2868]
[1735911315394,3.2078,3490.4,3489.4,5.45201944]
[1735911315594,0.28681,3489.5,3489.4,5.73883944]
[1735911315804,0.71694,3490.0,3489.4,5.45201944]
[1735911316004,0.2868,3489.7,3489.5,0.28681]
[1735911316197,0.7169,3490.2,3489.4,3.49462]
[1735911316394,0.28681,3489.6,3489.5,0.28681]
[1735911316594,40.8,3490.1,3489.4,2.24421944]
[1735911316794,41.08677,3490.1,3490.0,0.28677]
[1735911317003,40.8,3490.1,3489.5,3.2078]
[1735911317501,40.8,3490.1,3490.0,0.28677]
[1735911318100,3.2078,3490.3,3489.7,2.24421944]
[1735911318299,4.45308153,3490.8,3490.2,0.28676]
[1735911318506,4.45308153,3490.8,3490.7,0.28671]
[1735911319203,45.53979153,3490.8,3490.7,0.28671]
[1735911319402,40.8,3490.8,3490.7,0.28671]
[1735911320297,7.66088153,3491.3,3491.2,0.28667]
[1735911320298,4.45308153,3491.3,3491.2,0.28667]
[1735911320796,45.25308153,3491.3,3491.2,0.28667]
[1735911321000,40.8,3491.3,3491.2,0.28667]
[1735911321391,41.08666,3491.3,3491.2,0.28667]
[1735911321802,41.08666,3491.3,3490.6,2.24421944]
[1735911322103,41.08667,3491.3,3490.6,2.96102944]
[1735911322298,41.08667,3491.3,3491.1,0.28668]
[1735911322797,0.28668,3491.2,3490.6,2.24421944]
[1735911323301,40.8,3491.3,3490.6,2.24421944]
[1735911323604,41.08667,3491.3,3491.2,0.28667]
[1735911323901,4.45308153,3492.0,3490.9,2.24421944]
[1735911324102,0.28664,3491.6,3491.5,0.28664]
[1735911324398,0.28666,3491.5,3491.4,0.28666]
[1735911324996,0.28664,3491.6,3491.5,0.28665]
[1735911325400,40.8,3491.9,3491.1,3.2078]
[1735911325604,0.28665,3491.5,3491.3,0.28666]
[1735911325800,0.28664,3491.6,3491.4,0.28665]
[1735911326003,40.8,3491.9,3491.2,2.24421944]
[1735911326306,40.8,3491.9,3491.8,0.28662]
[1735911326802,0.28662,3491.9,3491.5,5.45201944]
[1735911327004,0.28662,3491.9,3491.8,0.28662]
[1735911327392,3.2078,3492.1,3491.8,2.24421944]
[1735911327698,0.28657,3492.5,3492.3,0.28657]
[1735911327895,3.2078,3492.9,3492.3,0.28657]
[1735911327896,0.28657,3492.4,3492.3,0.28657]
[1735911328502,40.8,3492.8,3492.4,0.28657]
[1735911328695,0.28657,3492.5,3492.3,0.28658]
[1735911328899,0.28658,3492.4,3492.2,0.28659]
[1735911329104,40.8,3492.8,3492.2,0.28659]
[1735911329506,40.8,3492.8,3492.1,2.24421944]
[1735911329507,0.28659,3492.2,3492.1,2.24421944]
[1735911329706,0.71638,3492.7,3492.1,2.24421944]
[1735911329896,40.8,3492.8,3491.9,3.2078]
[1735911330101,3.2078,3492.4,3491.8,2.24421944]
[1735911330403,0.28659,3492.2,3492.0,0.2866]
[1735911330806,40.8,3492.8,3492.0,0.2866]
[1735911331107,3.92422,3492.5,3491.9,3.2078]
[1735911331306,0.28664,3491.7,3491.6,0.28664]
[1735911331605,0.28666,3491.3,3491.2,3.2078]
[1735911332109,40.8,3491.3,3491.2,3.2078]
[1735911332406,0.71653,3492.0,3491.2,5.45201944]
[1735911332809,0.28666,3491.3,3491.2,3.49447]
[1735911333106,0.28666,3491.3,3491.2,3.2078]
[1735911333708,0.28666,3491.3,3491.2,5.73868944]
[1735911333904,40.8,3491.9,3491.2,5.45201944]
[1735911334110,0.28666,3491.4,3491.3,0.28666]
[1735911334708,0.28669,3491.0,3490.9,2.53090944]
[1735911335003,3.2078,3491.7,3490.9,2.24421944]
[1735911335205,3.2078,3491.7,3491.2,2.24421944]
[1735911335409,3.2078,3491.7,3490.5,1.167]
[1735911335410,40.8,3491.9,3491.5,2.24421944]
[1735911335610,3.2078,3492.3,3491.5,2.24421944]
[1735911335909,0.28663,3491.8,3491.7,0.28662]
[1735911336500,0.28664,3491.7,3491.6,0.28663]
[1735911336907,0.28661,3492.0,3491.9,0.28661]
[1735911337211,0.28661,3492.0,3491.9,2.24421944]
[1735911337413,0.7165,3492.2,3491.6,2.24421944]
[1735911337708,0.2866,3492.1,3492.0,0.28661]
[1735911337907,3.2078,3492.7,3492.3,0.28658]
[1735911338108,0.28657,3492.5,3492.4,2.24421944]
[1735911338705,0.28656,3492.6,3492.5,0.28656]
[1735911339012,0.28655,3492.8,3492.5,0.28657]
[1735911339208,3.92407,3493.3,3492.4,2.24421944]
[1735911339711,0.28655,3492.7,3492.6,0.28655]
[1735911339908,3.2078,3493.3,3492.4,2.24421944]
[1735911340105,3.2078,3493.3,3492.2,3.92427]
[1735911340106,0.28653,3493.0,3492.9,2.24421944]
[1735911340299,3.2078,3493.3,3492.9,2.24421944]
[1735911340506,0.2865,3493.4,3493.3,0.2865]
[1735911341513,3.2078,3493.7,3493.2,2.24421944]
[1735911341906,0.2865,3493.3,3493.2,2.24421944]
[1735911343307,3.2078,3493.7,3493.2,2.24421944]
[1735911343503,0.2865,3493.4,3493.3,0.28649]
[1735911343907,0.28649,3493.5,3493.4,0.28648]
[1735911344113,3.2078,3493.7,3493.2,2.24421944]
[1735911344615,0.2865,3493.3,3493.2,2.53072944]
[1735911345406,0.2865,3493.3,3493.2,2.24421944]
[1735911345613,0.28652,3493.1,3493.0,3.49432]
[1735911345810,0.28652,3493.1,3493.0,3.2078]
[1735911346011,0.28652,3493.1,3492.9,2.24421944]
[1735911346012,3.2078,3493.3,3492.6,2.24421944]
[1735911346314,0.71628,3493.2,3492.6,2.24421944]
[1735911346515,0.28655,3492.7,3492.6,2.53076944]
[1735911346915,0.28655,3492.7,3492.6,2.24421944]
[1735911348712,0.28655,3492.7,3492.6,2.53077944]
[1735911348918,0.28655,3492.7,3492.6,2.24421944]
[1735911349107,0.28655,3492.7,3492.6,2.53077944]
[1735911351309,0.28655,3492.7,3492.6,2.24421944]
[1735911351512,0.28655,3492.7,3492.6,2.53077944]
[1735911351712,0.28657,3492.4,3492.3,2.53079944]
[1735911351920,0.28657,3492.4,3492.3,2.24421944]
[1735911352518,0.2866,3492.1,3492.0,2.24421944]
[1735911352718,0.28662,3491.9,3491.8,0.28662]
[1735911352914,0.28662,3491.8,3491.7,2.53084944]
[1735911354010,0.28662,3491.8,3491.7,2.24421944]
[1735911354313,3.2078,3492.0,3491.1,5.45201944]
[1735911354518,0.28667,3491.3,3491.2,0.28667]
[1735911354718,0.28666,3491.4,3491.1,5.45201944]
[1735911355017,3.2078,3492.0,3491.1,5.45201944]
[1735911355218,40.8,3491.9,3491.4,2.24421944]
[1735911355726,0.28665,3491.6,3491.5,0.28664]
[1735911356018,0.28664,3491.7,3491.6,0.28664]
[1735911356415,0.28664,3491.7,3491.4,2.24421944]
[1735911356416,40.8,3491.9,3491.8,0.28662]
[1735911356719,3.2078,3492.0,3491.9,0.28662]
[1735911356911,3.49441,3492.0,3491.9,0.28662]
[1735911357110,3.2078,3492.0,3491.5,3.2078]
[1735911357315,3.2078,3492.0,3491.4,2.24421944]
[1735911357316,0.28662,3491.9,3491.8,0.28662]
[1735911358122,0.28661,3492.0,3491.9,0.28662]
[1735911359021,3.2078,3492.4,3491.7,2.24421944]
[1735911359518,3.2078,3491.9,3491.4,2.24421944]
[1735911359718,0.28663,3491.8,3491.7,0.28662]
[1735911360523,0.28664,3491.7,3491.6,0.28663]
[1735911361120,0.28661,3492.1,3492.0,0.2866]
[1735911361316,0.28663,3491.9,3491.8,0.28662]
[1735911361919,0.28658,3492.3,3492.2,0.28659]
[1735911362120,3.2078,3492.4,3492.0,2.24421944]
[1735911362322,3.2078,3492.4,3492.3,0.28658]
[1735911362519,7.66088153,3493.3,3492.7,0.28655]
[1735911362825,0.28654,3492.8,3492.7,0.28655]
[1735911363924,0.28656,3492.6,3492.5,0.28656]
[1735911364228,0.7163,3493.1,3492.3,2.24421944]
[1735911364229,0.28655,3492.8,3492.7,0.28654]
[1735911365031,0.28653,3493.0,3492.9,0.28653]
[1735911365228,44.0078,3493.3,3492.6,2.24421944]
[1735911365427,0.28652,3493.2,3493.1,0.28651]
[1735911366228,44.0078,3493.3,3492.7,0.71638]
[1735911366229,44.0078,3493.3,3492.9,2.24421944]
[1735911366428,44.2943,3493.3,3493.2,0.28651]
[1735911366630,40.8,3493.3,3493.2,0.28651]
[1735911366929,41.0865,3493.3,3493.2,0.28651]
[1735911367328,0.28651,3493.2,3493.0,0.28653]
[1735911367522,0.71623,3493.5,3492.7,3.2078]
[1735911367721,0.28652,3493.1,3493.0,0.28652]
[1735911367924,3.2078,3493.2,3492.7,3.2078]
[1735911368127,0.71632,3493.0,3492.5,0.28656]
[1735911368429,0.28657,3492.5,3492.4,0.28657]
[1735911368633,0.28656,3492.6,3492.5,0.28656]
[1735911368833,0.28657,3492.5,3492.4,0.28657]
[1735911369134,3.2078,3492.8,3492.3,2.24421944]
[1735911369322,41.08655,3492.7,3492.6,0.28656]
[1735911369922,40.8,3492.7,3492.6,2.53077944]
[1735911370126,3.2078,3492.8,3492.6,2.24421944]
[1735911370322,0.28651,3493.2,3493.1,0.28651]
[1735911370932,40.8,3493.6,3492.9,2.24421944]
[1735911371131,0.2865,3493.4,3493.3,0.28649]
[1735911371330,40.8,3493.6,3492.9,2.24421944]
[1735911371529,0.28651,3493.3,3493.2,0.28651]
[1735911371932,0.28649,3493.5,3493.4,0.28649]
[1735911372230,0.28648,3493.6,3493.5,0.28648]
[1735911372528,0.28651,3493.2,3493.1,0.28651]
[1735911372729,44.0078,3493.7,3493.0,3.2078]
[1735911373029,0.28648,3493.6,3493.5,0.28648]
[1735911373234,40.8,3493.7,3493.0,3.2078]
[1735911373733,0.28649,3493.5,3493.4,0.28649]
[1735911373931,0.28651,3493.3,3493.2,0.28651]
[1735911374134,40.8,3493.7,3492.9,2.24421944]
[1735911374336,0.2865,3493.4,3493.3,0.2865]
[1735911376632,0.28649,3493.5,3493.4,0.28649]
[1735911377040,40.8,3493.7,3493.0,0.71632]
[1735911377232,0.2865,3493.4,3493.3,0.28649]
[1735911377532,40.8,3493.7,3492.9,2.24421944]
[1735911377729,0.28652,3493.1,3493.0,0.28652]
[1735911377931,0.28651,3493.3,3493.2,0.2865]
[1735911378129,41.51619,3493.7,3492.9,2.24421944]
[1735911378333,0.28652,3493.2,3493.1,0.28651]
[1735911379129,3.2078,3493.4,3492.9,2.24421944]
[1735911379335,0.28653,3493.0,3492.9,2.53074944]
[1735911379539,3.2078,3493.4,3492.9,2.24421944]
[1735911379740,0.28652,3493.2,3493.1,0.28651]
[1735911379943,40.8,3493.7,3492.9,2.24421944]
[1735911380337,0.28651,3493.3,3493.2,0.2865]
[1735911380935,0.28651,3493.2,3493.1,0.2865]
[1735911381140,40.8,3493.7,3492.9,2.24421944]
[1735911381448,0.28651,3493.3,3493.2,0.2865]
[1735911381948,0.2865,3493.5,3493.4,0.28649]
[1735911382236,0.2865,3493.4,3493.3,0.28649]
[1735911383032,3.92397,3493.8,3493.2,2.53072944]
[1735911383230,3.92397,3493.8,3492.8,0.71635]
[1735911383231,3.92397,3493.8,3492.9,2.24421944]
[1735911383432,3.92397,3493.8,3493.3,0.28649]
[1735911383433,0.28649,3493.5,3493.3,0.28649]
[1735911383640,0.28648,3493.6,3493.4,0.28649]
[1735911383840,0.28648,3493.6,3493.2,2.24421944]
[1735911384139,0.28647,3493.7,3493.4,0.28648]
[1735911384338,3.2078,3493.8,3493.2,2.24421944]
[1735911384539,0.28647,3493.7,3493.6,0.28647]
[1735911385138,3.49426,3493.8,3493.7,0.28647]
[1735911385339,3.2078,3493.8,3493.7,0.28647]
[1735911385537,3.65386812,3494.1,3493.8,0.28646]
[1735911385838,0.71599,3494.6,3493.8,2.24421944]
[1735911385839,3.65385812,3494.2,3493.8,2.24421944]
[1735911386137,3.65385812,3494.2,3494.1,0.28643]
[1735911386336,3.36742812,3494.2,3494.1,0.28643]
[1735911386541,3.36742812,3494.2,3494.1,2.53064944]
[1735911387339,0.28641,3494.5,3494.4,0.28641]
[1735911388244,3.2078,3494.7,3494.1,2.24421944]
[1735911388540,0.71599,3494.6,3493.8,2.24421944]
[1735911388745,0.28645,3493.9,3493.8,0.28645]
[1735911389841,0.28648,3493.6,3493.5,2.53069944]
[1735911390440,41.08648,3493.6,3493.5,2.53069944]
[1735911390843,0.28648,3493.6,3493.5,2.53069944]
[1735911391344,41.08648,3493.6,3493.2,5.45201944]
[1735911391643,0.2865,3493.3,3493.2,5.73851944]
[1735911392738,0.2865,3493.3,3493.2,5.45201944]
[1735911393033,0.2865,3493.3,3493.2,2.24421944]
[1735911393645,0.28653,3493.1,3493.0,0.28652]
[1735911393845,0.28653,3493.0,3492.9,2.53074944]
[1735911394241,0.28653,3493.0,3492.9,0.28653]
[1735911394543,44.0078,3493.6,3492.7,3.2078]
[1735911394544,0.28654,3492.8,3492.7,3.2078]
[1735911395742,3.2078,3493.2,3492.3,2.24421944]
[1735911396050,0.28657,3492.4,3492.3,2.53079944]
[1735911396548,0.28657,3492.5,3492.4,0.28656]
[1735911397549,0.28656,3492.6,3492.5,0.28655]
[1735911399551,0.28659,3492.3,3492.2,0.28658]
[1735911399946,2.24421944,3492.7,3492.1,3.2078]
[1735911400146,0.28659,3492.2,3492.1,3.2078]
[1735911401344,0.28659,3492.2,3492.1,3.4944]
[1735911401545,40.8,3492.5,3492.1,3.2078]
[1735911401855,40.8,3492.5,3492.1,3.4944]
[1735911401856,0.28659,3492.2,3492.1,3.4944]
[1735911402156,0.28659,3492.2,3492.1,3.2078]
[1735911402653,0.28659,3492.2,3491.4,5.45201944]
[1735911402654,0.28663,3491.7,3491.4,5.45201944]
[1735911402948,0.28663,3491.8,3491.7,0.28663]
[1735911403350,0.28664,3491.7,3491.6,0.28663]
[1735911404854,0.71652,3492.1,3491.6,0.28663]
[1735911405059,0.28661,3492.1,3492.0,0.2866]
[1735911405351,3.4944,3492.2,3492.1,0.2866]
[1735911405551,3.2078,3492.2,3491.7,2.24421944]
[1735911405753,7.29164812,3492.6,3491.7,2.24421944]
[1735911406053,0.2866,3492.2,3492.1,0.28659]
[1735911406844,3.2078,3492.6,3491.8,3.2078]
[1735911407051,0.28658,3492.4,3492.3,0.28657]
[1735911407251,0.28657,3492.5,3492.4,0.28657]
[1735911407543,0.28657,3492.5,3492.0,2.96072944]
[1735911407544,3.2078,3492.6,3492.5,0.28657]
[1735911409854,0.28655,3492.7,3492.3,2.24421944]
[1735911410054,0.28653,3493.1,3493.0,0.28652]
[1735911410752,0.28653,3493.1,3492.2,3.2078]
[1735911410753,3.2078,3493.2,3492.2,3.2078]
[1735911410953,0.28659,3492.3,3492.2,0.28658]
[1735911411458,40.8,3492.3,3491.9,2.24421944]
[1735911411755,0.28662,3491.9,3491.8,0.28662]
[1735911414764,40.8,3492.3,3491.6,2.24421944]
[1735911414963,0.28662,3492.0,3491.9,0.2866]
[1735911415464,0.28659,3492.3,3492.2,0.28658]
[1735911416163,0.2866,3492.2,3492.1,0.28659]
[1735911416367,3.2078,3492.4,3491.6,5.45201944]
[1735911416660,0.28663,3491.8,3491.7,0.28662]
[1735911417559,2.24421944,3492.3,3491.3,2.24421944]
[1735911417753,40.8,3492.6,3491.2,3.2078]
[1735911417754,3.2078,3491.8,3491.2,3.2078]
[1735911417954,0.28666,3491.3,3491.2,3.49447]
[1735911418153,0.28666,3491.3,3491.2,3.2078]
[1735911418353,0.28669,3491.0,3490.9,6.65544185]
[1735911418564,0.28671,3490.7,3490.6,6.94216185]
[1735911419360,0.28671,3490.7,3490.6,6.65544185]
[1735911419964,0.28671,3490.7,3490.6,6.94216185]
[1735911420560,0.28671,3490.7,3490.6,0.28672]
[1735911421165,5.45201944,3491.1,3490.1,2.24421944]
[1735911421459,2.24421944,3490.5,3489.8,6.65544185]
[1735911421665,0.28678,3489.9,3489.8,6.94222185]
[1735911421861,0.28666,3491.4,3491.1,0.28668]
[1735911422057,3.2078,3491.5,3490.6,5.45201944]
[1735911422258,3.2078,3491.5,3490.3,0.71686]
[1735911422259,0.28672,3490.7,3490.5,0.28672]
[1735911422462,44.0078,3491.5,3490.2,3.2078]
[1735911422463,2.24421944,3491.0,3490.2,3.2078]
[1735911422652,0.28674,3490.4,3490.2,0.28675]
[1735911422860,0.28674,3490.4,3490.3,0.28675]
[1735911423258,3.2078,3490.7,3489.9,6.65544185]
[1735911423465,0.28675,3490.3,3490.1,0.28676]
[1735911423667,0.28674,3490.4,3490.2,0.28675]
[1735911423866,0.28674,3490.4,3490.3,0.28675]
[1735911424262,0.28676,3490.2,3490.1,0.28676]
[1735911424465,0.28676,3490.2,3490.0,2.24421944]
[1735911424466,3.2078,3490.7,3490.0,2.24421944]
[1735911424659,0.28675,3490.3,3490.2,0.28675]
[1735911424962,41.08675,3490.3,3490.2,0.28675]
[1735911425164,0.28674,3490.4,3490.0,2.24421944]
[1735911425366,0.28673,3490.6,3490.5,0.28673]
[1735911426264,3.2078,3490.7,3490.0,2.24421944]
[1735911426465,0.28673,3490.6,3490.5,0.28673]
[1735911426871,1.167,3491.1,3490.3,5.45201944]
[1735911426872,3.2078,3491.1,3490.3,5.45201944]
[1735911427166,3.49448,3491.1,3491.0,0.28669]
[1735911427964,3.2078,3491.6,3490.7,6.16880944]
[1735911428167,3.2078,3491.6,3491.5,0.28665]
[1735911428567,3.36854278,3491.8,3491.7,0.28663]
[1735911428965,0.28659,3492.3,3491.6,2.24421944]
[1735911429174,0.28659,3492.3,3492.2,0.28659]
[1735911429372,0.28663,3491.8,3491.7,0.28662]
[1735911430077,3.2078,3492.1,3491.0,0.71673]
[1735911430270,40.8,3492.0,3491.2,2.24421944]
[1735911430468,0.28664,3491.6,3491.2,2.24421944]
[1735911430674,0.28664,3491.6,3491.5,0.28664]
[1735911431380,0.28665,3491.5,3491.4,0.28665]
[1735911431776,3.2078,3491.7,3490.9,5.45201944]
[1735911432077,0.28667,3491.2,3490.9,0.28669]
[1735911432271,0.2867,3491.0,3490.9,0.28669]
[1735911433268,0.28669,3491.1,3491.0,0.28668]
[1735911434178,41.08669,3491.1,3491.0,0.28668]
[1735911434379,0.28669,3491.0,3490.9,0.28669]
[1735911435672,40.8,3491.1,3491.0,0.28669]
[1735911435880,0.28668,3491.2,3491.1,0.28668]
[1735911436479,41.08668,3491.2,3491.1,0.28668]
[1735911438784,0.28669,3491.0,3490.9,0.28669]
[1735911440177,40.8,3491.2,3490.6,2.24421944]
[1735911440382,0.28669,3491.1,3491.0,0.28668]
[1735911445178,41.08668,3491.2,3491.1,0.28668]
[1735911445374,40.8,3491.2,3491.1,0.28668]
[1735911445578,0.28665,3491.5,3491.4,0.28666]
[1735911445988,41.08665,3491.5,3491.4,0.28666]
[1735911446185,0.28667,3491.3,3491.2,0.28667]
[1735911446581,0.28669,3491.1,3491.0,0.28668]
[1735911447681,3.2078,3491.4,3490.6,2.24421944]
[1735911447882,0.28671,3490.8,3490.7,0.2867]
[1735911448690,3.2078,3491.4,3490.6,2.24421944]
[1735911448988,0.28668,3491.2,3491.1,0.28667]
[1735911454483,3.2078,3491.4,3490.9,2.96095944]
[1735911454685,3.2078,3491.4,3491.3,0.28666]
[1735911454686,3.49447,3491.4,3491.3,0.28666]
[1735911455383,0.28668,3491.2,3491.1,0.28667]
[1735911456091,0.28667,3491.3,3491.2,0.28666]
[1735911456487,3.49446,3491.4,3491.3,0.28666]
[1735911458891,3.2078,3491.4,3490.7,4.42368961]
[1735911459392,0.28671,3490.8,3490.7,4.42368961]
[1735911460092,0.28671,3490.8,3490.1,14.30020309]
[1735911460093,0.28671,3490.7,3490.6,4.42368961]
[1735911460394,0.28671,3490.7,3490.6,2.53768961]
[1735911460697,5.28671,3490.7,3490.6,2.53768961]
[1735911461597,0.28679,3489.9,3489.8,0.28678]
[1735911461895,0.28679,3489.8,3489.7,2.53100944]
[1735911463593,0.28679,3489.8,3489.7,2.24421944]
[1735911463794,0.28681,3489.6,3489.5,0.28681]
[1735911464792,0.28683,3489.3,3489.2,3.49463]
[1735911464992,0.28684,3489.2,3489.1,6.65544185]
[1735911465385,3.49464,3489.2,3489.1,6.65544185]
[1735911465994,0.28686,3488.9,3488.8,6.65544185]
[1735911467690,0.28687,3488.8,3488.7,0.28688]
[1735911468790,0.28687,3488.9,3488.5,2.24421944]
[1735911468998,3.2078,3489.2,3488.5,2.24421944]
[1735911469196,0.28685,3489.1,3489.0,0.28685]
[1735911469797,3.2078,3489.2,3489.1,0.28685]
[1735911470096,3.49464,3489.2,3489.1,0.28685]
[1735911470294,2.25082138,3489.6,3488.8,5.45201944]
[1735911470490,3.2078,3489.7,3489.1,2.24421944]
[1735911470698,0.28682,3489.5,3489.4,0.28682]
[1735911473203,0.71697,3489.9,3489.1,2.24421944]
[1735911473403,0.28682,3489.4,3489.3,0.28682]
[1735911473699,0.28682,3489.4,3489.1,2.24421944]
[1735911473900,0.71697,3489.9,3489.1,2.24421944]
[1735911474101,0.28683,3489.3,3489.2,0.28683]
[1735911474805,3.2078,3489.7,3489.1,2.24421944]
[1735911475102,3.2078,3489.7,3489.3,0.28682]
[1735911475103,0.28683,3489.4,3489.3,0.28682]
[1735911475904,3.2078,3489.7,3489.4,0.28681]
[1735911475905,0.28682,3489.5,3489.4,0.28681]
[1735911476203,0.28681,3489.6,3489.5,0.28681]
[1735911476398,0.28681,3489.6,3489.2,4.21174]
[1735911476607,0.2868,3489.7,3489.6,0.2868]
[1735911477205,41.0868,3489.7,3489.6,0.2868]
[1735911483502,40.8,3489.7,3489.6,0.2868]
[1735911483707,3.2078,3490.1,3489.4,2.24421944]
[1735911484112,0.28681,3489.6,3489.5,0.2868]
[1735911484710,0.28678,3489.9,3489.6,0.2868]
[1735911484911,0.28681,3489.7,3489.6,0.2868]
[1735911485414,0.28679,3489.9,3489.8,0.28678]
[1735911485808,40.8,3490.0,3489.4,2.96125944]
[1735911486110,40.8,3490.0,3489.4,2.24421944]
[1735911486312,0.28679,3489.9,3489.8,0.28678]
[1735911488711,0.28673,3490.6,3490.5,0.28672]
[1735911488907,40.8,3490.7,3490.6,0.28672]
[1735911489507,2.25082138,3490.8,3490.6,2.24421944]
[1735911489707,2.25082138,3490.8,3490.7,0.28671]
[1735911491215,40.8,3491.0,3490.6,2.24421944]
[1735911491216,3.2078,3491.6,3490.6,2.24421944]
[1735911491422,3.2078,3491.6,3491.0,5.45201944]
[1735911491614,3.49445,3491.6,3491.5,0.28665]
[1735911491811,44.29445,3491.6,3491.5,0.28665]
[1735911492321,3.49445,3491.6,3491.5,0.28665]
[1735911493214,3.2078,3491.6,3491.0,5.45201944]
[1735911493408,3.2078,3491.6,3491.5,0.28665]
[1735911493614,3.49444,3491.6,3491.5,0.28665]
[1735911494313,0.28665,3491.5,3491.4,0.28665]
[1735911494509,0.28668,3491.3,3491.2,0.28667]
[1735911494910,3.2078,3491.6,3491.0,3.2078]
[1735911495109,0.28668,3491.1,3490.8,0.2867]
[1735911495315,0.28673,3490.5,3490.4,3.49453]
[1735911495516,0.71673,3491.0,3490.1,8.89966129]
[1735911495715,0.28673,3490.6,3490.5,0.28672]
[1735911495919,41.08673,3490.6,3490.5,0.28672]
[1735911496216,41.08672,3490.6,3490.5,0.28672]
[1735911496618,40.8,3490.6,3490.5,0.28672]
[1735911497222,0.2867,3490.9,3490.4,5.45201944]
[1735911497418,0.2867,3490.9,3490.8,0.28671]
[1735911497917,3.92446,3491.4,3490.8,0.28671]
[1735911498119,0.28669,3491.0,3490.9,0.28668]
[1735911499823,0.28669,3491.1,3491.0,0.28668]
[1735911500019,3.92444,3491.5,3490.7,2.24421944]
[1735911500216,0.2867,3490.9,3490.8,0.28669]
[1735911501926,0.2867,3490.9,3490.4,3.92464]
[1735911501927,0.28673,3490.6,3490.5,0.28672]
[1735911503227,0.28676,3490.1,3490.0,0.28676]
[1735911503932,3.2078,3490.2,3489.6,3.2078]
[1735911504120,3.2078,3490.2,3489.8,2.24421944]
[1735911504323,0.28675,3490.4,3490.3,0.28674]
[1735911506019,3.2078,3490.4,3489.6,3.2078]
[1735911506230,3.2078,3489.8,3489.1,2.24421944]
[1735911506423,0.28681,3489.7,3489.6,0.2868]
[1735911507027,0.28679,3489.8,3489.7,0.28678]
[1735911507328,0.2868,3489.7,3489.6,0.2868]
[1735911507629,0.28679,3489.9,3489.8,0.28678]
[1735911507932,0.28674,3490.5,3490.4,0.28673]
[1735911508122,0.28675,3490.3,3490.2,0.28675]
[1735911508328,0.28677,3490.2,3490.1,0.28676]
[1735911508725,0.28676,3490.3,3490.2,0.28675]
[1735911509429,0.28677,3490.1,3490.0,0.28677]
[1735911510023,0.2868,3489.8,3489.6,2.24421944]